[Event "*** Titled Tuesday Blitz"]
[Site "Chess.com"]
[Date "2021.02.16"]
[Round "11"]
[White "Alexander_Zubov"]
[Black "Violord"]
[Result "1-0"]
[WhiteElo "2982"]
[BlackElo "2728"]
[TimeControl "180+1"]
[EndTime "12:11:33 PST"]
[Termination "Alexander_Zubov won on time"]

1. e4 {[%clk 0:03:00.9]} 1... g6 {[%clk 0:02:59.4]} 2. d4 {[%clk 0:02:59.6]}
2... Bg7 {[%clk 0:02:59.4]} 3. Nf3 {[%clk 0:02:56.8]} 3... d6 {[%clk 0:02:59.1]}
4. Bc4 {[%clk 0:02:56.7]} 4... Nf6 {[%clk 0:02:58.9]} 5. Qe2 {[%clk 0:02:56.7]}
5... Nc6 {[%clk 0:02:58.5]} 6. e5 {[%clk 0:02:53.4]} 6... dxe5 {[%clk
0:02:57.7]} 7. dxe5 {[%clk 0:02:52.9]} 7... Ng4 {[%clk 0:02:57.6]} 8. e6 {[%clk
0:02:51.1]} 8... f5 {[%clk 0:02:56.2]} 9. O-O {[%clk 0:02:36.3]} 9... Qd6 {[%clk
0:02:55.6]} 10. c3 {[%clk 0:02:17.6]} 10... Nce5 {[%clk 0:02:54.7]} 11. Nxe5
{[%clk 0:02:16]} 11... Qxe5 {[%clk 0:02:53.5]} 12. Qxe5 {[%clk 0:02:12.1]} 12...
Nxe5 {[%clk 0:02:44.9]} 13. Bb3 {[%clk 0:02:11.6]} 13... a5 {[%clk 0:02:45]} 14.
a4 {[%clk 0:02:07.1]} 14... Ra6 {[%clk 0:02:41.5]} 15. Na3 {[%clk 0:01:44]}
15... Bxe6 {[%clk 0:02:39.4]} 16. Bxe6 {[%clk 0:01:42.6]} 16... Rxe6 {[%clk
0:02:38.4]} 17. Nb5 {[%clk 0:01:43.2]} 17... Kd7 {[%clk 0:02:35.4]} 18. Bf4
{[%clk 0:01:37.1]} 18... c6 {[%clk 0:02:16.9]} 19. Rad1+ {[%clk 0:01:11.1]}
19... Kc8 {[%clk 0:02:15.3]} 20. Nd4 {[%clk 0:01:08.1]} 20... Rd6 {[%clk
0:02:14.9]} 21. Rde1 {[%clk 0:00:34.5]} 21... Rd5 {[%clk 0:02:10.9]} 22. Ne6
{[%clk 0:00:33.8]} 22... Bf6 {[%clk 0:02:10.1]} 23. Re2 {[%clk 0:00:32.9]} 23...
Nd3 {[%clk 0:01:59.8]} 24. Bg3 {[%clk 0:00:29.6]} 24... g5 {[%clk 0:01:55.2]}
25. f4 {[%clk 0:00:29.2]} 25... gxf4 {[%clk 0:01:53.2]} 26. Bxf4 {[%clk
0:00:29.5]} 26... Rg8 {[%clk 0:01:44.6]} 27. Rf3 {[%clk 0:00:28.6]} 27... Nxf4
{[%clk 0:01:37.6]} 28. Nxf4 {[%clk 0:00:23]} 28... Rd1+ {[%clk 0:01:35.3]} 29.
Kf2 {[%clk 0:00:23.3]} 29... Rh1 {[%clk 0:01:20.9]} 30. Rh3 {[%clk 0:00:15.9]}
30... e5 {[%clk 0:01:13.8]} 31. Nh5 {[%clk 0:00:16.2]} 31... Bh8 {[%clk
0:01:04.2]} 32. Ng3 {[%clk 0:00:16.1]} 32... Ra1 {[%clk 0:00:58.1]} 33. Nxf5
{[%clk 0:00:09.1]} 33... Rf8 {[%clk 0:00:57]} 34. g4 {[%clk 0:00:07.4]} 34...
Rxa4 {[%clk 0:00:55.2]} 35. Kg3 {[%clk 0:00:07.9]} 35... e4 {[%clk 0:00:50.3]}
36. Rxh7 {[%clk 0:00:07.1]} 36... Be5+ {[%clk 0:00:48.5]} 37. Kh3 {[%clk
0:00:07.6]} 37... Rc4 {[%clk 0:00:45.6]} 38. Rh5 {[%clk 0:00:06.1]} 38... Kc7
{[%clk 0:00:43]} 39. Ne3 {[%clk 0:00:05.2]} 39... Rc5 {[%clk 0:00:38.6]} 40. Kg2
{[%clk 0:00:05.5]} 40... Bd6 {[%clk 0:00:37.6]} 41. Rh7+ {[%clk 0:00:05.2]}
41... Kb6 {[%clk 0:00:35.4]} 42. Nf5 {[%clk 0:00:05.8]} 42... Rd5 {[%clk
0:00:32.1]} 43. h4 {[%clk 0:00:05.1]} 43... Rg8 {[%clk 0:00:19.8]} 44. Kh3
{[%clk 0:00:04.9]} 44... Rd3+ {[%clk 0:00:18.7]} 45. Re3 {[%clk 0:00:03.9]}
45... Bf4 {[%clk 0:00:15]} 46. Rxd3 {[%clk 0:00:03.8]} 46... exd3 {[%clk
0:00:15.3]} 47. Rd7 {[%clk 0:00:04.7]} 47... d2 {[%clk 0:00:15.1]} 48. g5 {[%clk
0:00:04.9]} 48... Re8 {[%clk 0:00:14.7]} 49. Kg4 {[%clk 0:00:05]} 49... Re1
{[%clk 0:00:15.3]} 50. Kxf4 {[%clk 0:00:05.4]} 50... d1=Q {[%clk 0:00:15]} 51.
Rxd1 {[%clk 0:00:05.9]} 51... Rxd1 {[%clk 0:00:13.6]} 52. g6 {[%clk 0:00:06.5]}
52... Rg1 {[%clk 0:00:12.7]} 53. Ng3 {[%clk 0:00:06.2]} 53... Rb1 {[%clk
0:00:06.7]} 54. g7 {[%clk 0:00:05.8]} 54... Rxb2 {[%clk 0:00:07.3]} 55. g8=Q
{[%clk 0:00:05.9]} 55... a4 {[%clk 0:00:07.9]} 56. Ne4 {[%clk 0:00:03.3]} 56...
a3 {[%clk 0:00:07]} 57. Qd8+ {[%clk 0:00:03.8]} 57... Kb5 {[%clk 0:00:05.4]} 58.
Qd4 {[%clk 0:00:03]} 58... a2 {[%clk 0:00:02.9]} 59. c4+ {[%clk 0:00:03.3]} 1-0

[Event "*** Titled Tuesday Blitz"]
[Site "Chess.com"]
[Date "2021.02.16"]
[Round "11"]
[White "AliKa2810"]
[Black "frankshar"]
[Result "1-0"]
[WhiteElo "2548"]
[BlackElo "2414"]
[TimeControl "180+1"]
[EndTime "12:11:33 PST"]
[Termination "AliKa2810 won on time"]

1. d4 {[%clk 0:03:00.9]} 1... Nf6 {[%clk 0:02:58.3]} 2. c4 {[%clk 0:03:00.5]}
2... e6 {[%clk 0:02:58.2]} 3. Nc3 {[%clk 0:03:00.8]} 3... Bb4 {[%clk 0:02:58.5]}
4. e3 {[%clk 0:03:01.3]} 4... c5 {[%clk 0:02:57.8]} 5. Ne2 {[%clk 0:02:59.3]}
5... d5 {[%clk 0:02:49.4]} 6. a3 {[%clk 0:02:58.4]} 6... Bxc3+ {[%clk 0:02:49]}
7. Nxc3 {[%clk 0:02:59.3]} 7... cxd4 {[%clk 0:02:48.7]} 8. exd4 {[%clk
0:02:58.3]} 8... dxc4 {[%clk 0:02:49.1]} 9. Bxc4 {[%clk 0:02:59.2]} 9... O-O
{[%clk 0:02:48.9]} 10. Bg5 {[%clk 0:02:59]} 10... Nc6 {[%clk 0:02:42.9]} 11. Be3
{[%clk 0:02:58.4]} 11... b6 {[%clk 0:02:38.5]} 12. O-O {[%clk 0:02:58.3]} 12...
Bb7 {[%clk 0:02:38.7]} 13. Re1 {[%clk 0:02:57.6]} 13... Rc8 {[%clk 0:02:38.1]}
14. Bd3 {[%clk 0:02:55.1]} 14... h6 {[%clk 0:02:32.7]} 15. h3 {[%clk 0:02:42.8]}
15... Qd6 {[%clk 0:02:32.4]} 16. Qd2 {[%clk 0:02:35.7]} 16... Rfd8 {[%clk
0:01:22.8]} 17. Bxh6 {[%clk 0:02:31.1]} 17... Qxd4 {[%clk 0:01:22.7]} 18. Qg5
{[%clk 0:02:25.2]} 18... Ne8 {[%clk 0:01:22.6]} 19. Rad1 {[%clk 0:02:10.1]}
19... Qf6 {[%clk 0:01:20.2]} 20. Qxf6 {[%clk 0:02:08.2]} 20... Nxf6 {[%clk
0:01:21.1]} 21. Bg5 {[%clk 0:02:08.1]} 21... Nd4 {[%clk 0:01:15.3]} 22. Ne4
{[%clk 0:01:56.2]} 22... Bxe4 {[%clk 0:01:08.2]} 23. Bxe4 {[%clk 0:01:55.9]}
23... Nb3 {[%clk 0:01:07.8]} 24. Rxd8+ {[%clk 0:01:45.4]} 24... Rxd8 {[%clk
0:01:06.9]} 25. Bc2 {[%clk 0:01:45.9]} 25... Nc5 {[%clk 0:00:57]} 26. Rd1 {[%clk
0:01:39.8]} 26... Rd5 {[%clk 0:00:54.7]} 27. Rxd5 {[%clk 0:01:37.7]} 27... Nxd5
{[%clk 0:00:55.6]} 28. h4 {[%clk 0:01:23.3]} 28... f6 {[%clk 0:00:50.6]} 29. Bd2
{[%clk 0:01:22.1]} 29... Kf7 {[%clk 0:00:50.8]} 30. h5 {[%clk 0:01:21.3]} 30...
f5 {[%clk 0:00:47]} 31. g3 {[%clk 0:01:06.4]} 31... Nf6 {[%clk 0:00:45.3]} 32.
Bd1 {[%clk 0:01:06.6]} 32... Nfe4 {[%clk 0:00:36.5]} 33. Bf4 {[%clk 0:01:06.4]}
33... Nd3 {[%clk 0:00:34.5]} 34. Bb8 {[%clk 0:01:06.4]} 34... Nxb2 {[%clk
0:00:33.1]} 35. Be2 {[%clk 0:01:04.6]} 35... a5 {[%clk 0:00:30.5]} 36. Bc7
{[%clk 0:01:03]} 36... Na4 {[%clk 0:00:25.4]} 37. f3 {[%clk 0:00:51.8]} 37...
Nf6 {[%clk 0:00:23.6]} 38. g4 {[%clk 0:00:51]} 38... Nc3 {[%clk 0:00:21.7]} 39.
Bc4 {[%clk 0:00:43.1]} 39... fxg4 {[%clk 0:00:21.3]} 40. fxg4 {[%clk 0:00:43.3]}
40... b5 {[%clk 0:00:19.1]} 41. Bd3 {[%clk 0:00:41.6]} 41... b4 {[%clk
0:00:17.4]} 42. Bxa5 {[%clk 0:00:34.2]} 42... bxa3 {[%clk 0:00:13.2]} 43. Bxc3
{[%clk 0:00:31.6]} 43... Nxg4 {[%clk 0:00:13.8]} 44. Bg6+ {[%clk 0:00:25.8]}
44... Kg8 {[%clk 0:00:12.3]} 45. Kg2 {[%clk 0:00:22]} 45... Ne3+ {[%clk
0:00:11.7]} 46. Kf3 {[%clk 0:00:21.6]} 46... Nd5 {[%clk 0:00:11.6]} 47. Be5
{[%clk 0:00:19]} 47... Ne7 {[%clk 0:00:08.8]} 48. Be4 {[%clk 0:00:18.5]} 48...
Nd5 {[%clk 0:00:07.6]} 49. Ke2 {[%clk 0:00:13.7]} 49... Nf6 {[%clk 0:00:07.3]}
50. Bg6 {[%clk 0:00:13.6]} 50... Nd5 {[%clk 0:00:07.4]} 51. Kd3 {[%clk
0:00:12.1]} 51... a2 {[%clk 0:00:07.5]} 52. Kc2 {[%clk 0:00:10.7]} 52... Kf8
{[%clk 0:00:06]} 53. Kb2 {[%clk 0:00:10.1]} 53... Ne3 {[%clk 0:00:05.2]} 54.
Kxa2 {[%clk 0:00:09.9]} 54... Ng4 {[%clk 0:00:05.5]} 55. Bd6+ {[%clk 0:00:07.8]}
55... Kg8 {[%clk 0:00:04.9]} 56. Kb3 {[%clk 0:00:07.9]} 56... Nf6 {[%clk
0:00:05]} 57. Kc4 {[%clk 0:00:07.1]} 57... Nd7 {[%clk 0:00:03.4]} 58. Kd4 {[%clk
0:00:06.6]} 58... Kh8 {[%clk 0:00:01.7]} 59. Ke4 {[%clk 0:00:04.7]} 59... Kg8
{[%clk 0:00:01.4]} 60. Bf4 {[%clk 0:00:03.1]} 1-0

[Event "*** Titled Tuesday Blitz"]
[Site "Chess.com"]
[Date "2021.02.16"]
[Round "11"]
[White "Salem-AR"]
[Black "swisspower96"]
[Result "1-0"]
[WhiteElo "2913"]
[BlackElo "2672"]
[TimeControl "180+1"]
[EndTime "12:11:40 PST"]
[Termination "Salem-AR won by resignation"]

1. d4 {[%clk 0:03:00.9]} 1... Nf6 {[%clk 0:02:59.8]} 2. c4 {[%clk 0:03:01.6]}
2... e6 {[%clk 0:03:00.4]} 3. Nf3 {[%clk 0:03:02.4]} 3... d5 {[%clk 0:02:59.5]}
4. Nc3 {[%clk 0:03:03.2]} 4... Bb4 {[%clk 0:02:59.3]} 5. Bg5 {[%clk 0:03:03.9]}
5... h6 {[%clk 0:02:58.9]} 6. Bxf6 {[%clk 0:03:04.7]} 6... Qxf6 {[%clk
0:02:59.8]} 7. e3 {[%clk 0:03:05.5]} 7... O-O {[%clk 0:02:57.5]} 8. Rc1 {[%clk
0:03:06.2]} 8... Qg6 {[%clk 0:02:29.8]} 9. Bd3 {[%clk 0:03:00.6]} 9... Qxg2
{[%clk 0:02:27.8]} 10. Rg1 {[%clk 0:03:00.5]} 10... Qh3 {[%clk 0:02:28.2]} 11.
a3 {[%clk 0:02:43.6]} 11... dxc4 {[%clk 0:02:14.7]} 12. Bf1 {[%clk 0:02:18.8]}
12... Bxc3+ {[%clk 0:02:13.3]} 13. Rxc3 {[%clk 0:02:19.7]} 13... Qh5 {[%clk
0:02:03.4]} 14. Rxc4 {[%clk 0:02:20]} 14... Nc6 {[%clk 0:02:02]} 15. Rc5 {[%clk
0:02:13.1]} 15... e5 {[%clk 0:01:25.3]} 16. Be2 {[%clk 0:01:41.1]} 16... Bg4
{[%clk 0:00:50.1]} 17. Nxe5 {[%clk 0:01:40.7]} 17... Bxe2 {[%clk 0:00:49.5]} 18.
Qxe2 {[%clk 0:01:41.6]} 18... Qxe2+ {[%clk 0:00:42.7]} 19. Kxe2 {[%clk
0:01:42.5]} 19... Nxe5 {[%clk 0:00:41]} 20. Rxe5 {[%clk 0:01:43.4]} 20... Rfe8
{[%clk 0:00:39.6]} 21. f4 {[%clk 0:01:27.9]} 21... f6 {[%clk 0:00:37.7]} 22.
Rxe8+ {[%clk 0:01:21]} 22... Rxe8 {[%clk 0:00:38.6]} 23. f5 {[%clk 0:01:17.7]}
23... Re4 {[%clk 0:00:37]} 24. Rg3 {[%clk 0:01:05.9]} 24... Kf7 {[%clk
0:00:33.5]} 25. Kd3 {[%clk 0:01:04.9]} 25... Rh4 {[%clk 0:00:32.9]} 26. h3
{[%clk 0:01:04.9]} 26... c6 {[%clk 0:00:26.8]} 27. b4 {[%clk 0:01:02]} 27... b6
{[%clk 0:00:17.6]} 28. a4 {[%clk 0:00:55.4]} 28... c5 {[%clk 0:00:17.9]} 29. b5
{[%clk 0:00:38.7]} 29... cxd4 {[%clk 0:00:16.4]} 30. e4 {[%clk 0:00:39.2]} 30...
Rf4 {[%clk 0:00:06.2]} 31. Kxd4 {[%clk 0:00:39.6]} 31... Rf1 {[%clk 0:00:06.7]}
32. Rc3 {[%clk 0:00:33.6]} 32... Rd1+ {[%clk 0:00:07.1]} 33. Ke3 {[%clk
0:00:33.7]} 33... Rd7 {[%clk 0:00:07.4]} 34. Rc6 {[%clk 0:00:31.9]} 34... g5
{[%clk 0:00:07.5]} 35. fxg6+ {[%clk 0:00:31.2]} 35... Kxg6 {[%clk 0:00:07.9]}
36. e5 {[%clk 0:00:32.1]} 36... Kf5 {[%clk 0:00:07.2]} 37. exf6 {[%clk
0:00:16.3]} 37... Rf7 {[%clk 0:00:05.9]} 38. Kd4 {[%clk 0:00:17]} 38... Rd7+
{[%clk 0:00:06.3]} 39. Kc4 {[%clk 0:00:17]} 39... h5 {[%clk 0:00:04.1]} 40. Kc3
{[%clk 0:00:10]} 40... h4 {[%clk 0:00:03.1]} 41. Kb4 {[%clk 0:00:08.9]} 41...
Kg6 {[%clk 0:00:03.5]} 42. a5 {[%clk 0:00:07.7]} 42... Rd4+ {[%clk 0:00:03.5]}
43. Kc3 {[%clk 0:00:05.4]} 43... Rf4 {[%clk 0:00:03.9]} 44. axb6 {[%clk
0:00:05.6]} 44... axb6 {[%clk 0:00:04.8]} 45. Rxb6 {[%clk 0:00:06.3]} 45... Rf3+
{[%clk 0:00:05.5]} 46. Kd4 {[%clk 0:00:06.7]} 46... Rxh3 {[%clk 0:00:06.4]} 47.
Rd6 {[%clk 0:00:06.4]} 47... Rh1 {[%clk 0:00:06.4]} 48. Kc5 {[%clk 0:00:06.7]}
48... h3 {[%clk 0:00:06.3]} 49. Kb6 {[%clk 0:00:06.6]} 49... Rc1 {[%clk
0:00:01.6]} 50. Rd2 {[%clk 0:00:05.4]} 50... Rc3 {[%clk 0:00:01.5]} 51. Rf2
{[%clk 0:00:05.3]} 51... Kf7 {[%clk 0:00:02]} 52. Kb7 {[%clk 0:00:05.7]} 52...
Rg3 {[%clk 0:00:02.6]} 53. b6 {[%clk 0:00:05.7]} 53... Rg2 {[%clk 0:00:02.4]}
54. Rf3 {[%clk 0:00:05.9]} 54... h2 {[%clk 0:00:02.8]} 55. Rh3 {[%clk
0:00:06.7]} 55... Rb2 {[%clk 0:00:03]} 56. Rh6 {[%clk 0:00:05.8]} 56... Rc2
{[%clk 0:00:01.8]} 57. Kb8 {[%clk 0:00:06]} 57... Rb2 {[%clk 0:00:02.2]} 58. b7
{[%clk 0:00:06.6]} 58... Rc2 {[%clk 0:00:01.8]} 59. Ka7 {[%clk 0:00:06.8]} 59...
Ra2+ {[%clk 0:00:02.4]} 60. Kb6 {[%clk 0:00:07.4]} 60... Rb2+ {[%clk 0:00:03.1]}
61. Kc7 {[%clk 0:00:08]} 61... Rc2+ {[%clk 0:00:03.7]} 62. Kd6 {[%clk
0:00:08.5]} 62... Rd2+ {[%clk 0:00:04.2]} 63. Ke5 {[%clk 0:00:08.5]} 63... Rb2
{[%clk 0:00:04.9]} 64. Rxh2 {[%clk 0:00:08.6]} 64... Rxb7 {[%clk 0:00:04.6]} 65.
Rh7+ {[%clk 0:00:07.9]} 1-0

[Event "*** Titled Tuesday Blitz"]
[Site "Chess.com"]
[Date "2021.02.16"]
[Round "11"]
[White "ChampStan"]
[Black "Ginger_GM"]
[Result "1-0"]
[WhiteElo "2331"]
[BlackElo "2634"]
[TimeControl "180+1"]
[EndTime "12:11:43 PST"]
[Termination "ChampStan won on time"]

1. d4 {[%clk 0:03:00.9]} 1... Nf6 {[%clk 0:02:48.2]} 2. c4 {[%clk 0:02:58.9]}
2... e5 {[%clk 0:02:47.8]} 3. dxe5 {[%clk 0:02:57.7]} 3... Ne4 {[%clk
0:02:45.2]} 4. Nf3 {[%clk 0:02:53.4]} 4... Nc6 {[%clk 0:02:43]} 5. Nbd2 {[%clk
0:02:47.9]} 5... Nc5 {[%clk 0:02:39.3]} 6. g3 {[%clk 0:02:13.3]} 6... d6 {[%clk
0:02:39.2]} 7. exd6 {[%clk 0:02:12.5]} 7... Bxd6 {[%clk 0:02:38.7]} 8. Bg2
{[%clk 0:02:13]} 8... Bg4 {[%clk 0:02:26.3]} 9. h3 {[%clk 0:02:07.5]} 9... Bh5
{[%clk 0:01:59.1]} 10. O-O {[%clk 0:01:53]} 10... Qe7 {[%clk 0:01:58.2]} 11. a3
{[%clk 0:01:46]} 11... a5 {[%clk 0:01:53.8]} 12. Nb3 {[%clk 0:01:43.4]} 12...
Ne4 {[%clk 0:01:45.3]} 13. Nfd4 {[%clk 0:01:07.9]} 13... O-O {[%clk 0:01:10.7]}
14. Nxc6 {[%clk 0:00:52.8]} 14... bxc6 {[%clk 0:01:10.3]} 15. Nd4 {[%clk
0:00:53.1]} 15... Rfe8 {[%clk 0:00:40.6]} 16. Nf5 {[%clk 0:00:37.2]} 16... Qf6
{[%clk 0:00:35.8]} 17. Nxd6 {[%clk 0:00:36.6]} 17... cxd6 {[%clk 0:00:33.8]} 18.
Qc2 {[%clk 0:00:23.4]} 18... Bg6 {[%clk 0:00:32.6]} 19. Qa4 {[%clk 0:00:19.7]}
19... Rac8 {[%clk 0:00:22.9]} 20. Qxa5 {[%clk 0:00:18.4]} 20... Qd4 {[%clk
0:00:21.7]} 21. Be3 {[%clk 0:00:17.2]} 21... Qxc4 {[%clk 0:00:22]} 22. Rac1
{[%clk 0:00:13.6]} 22... Qb3 {[%clk 0:00:22.1]} 23. Qa6 {[%clk 0:00:11.2]} 23...
c5 {[%clk 0:00:17.8]} 24. Qc4 {[%clk 0:00:08.4]} 24... Qxb2 {[%clk 0:00:16.8]}
25. a4 {[%clk 0:00:07]} 25... Qe5 {[%clk 0:00:15.6]} 26. Bf4 {[%clk 0:00:06.8]}
26... Qe7 {[%clk 0:00:15.3]} 27. Rfd1 {[%clk 0:00:06.3]} 27... Red8 {[%clk
0:00:14.6]} 28. Qd5 {[%clk 0:00:05.5]} 28... Nf6 {[%clk 0:00:14]} 29. Qb7 {[%clk
0:00:05.5]} 29... Qxe2 {[%clk 0:00:12.6]} 30. Rxd6 {[%clk 0:00:04.2]} 30... Re8
{[%clk 0:00:11.2]} 31. Rdd1 {[%clk 0:00:03.6]} 31... Be4 {[%clk 0:00:09.8]} 32.
Bxe4 {[%clk 0:00:03.3]} 32... Qxe4 {[%clk 0:00:10.1]} 33. Qxe4 {[%clk
0:00:02.8]} 33... Nxe4 {[%clk 0:00:10.8]} 34. Be3 {[%clk 0:00:03.2]} 34... Ra8
{[%clk 0:00:10.6]} 35. Rc4 {[%clk 0:00:03]} 35... Nd6 {[%clk 0:00:09.8]} 36.
Rxd6 {[%clk 0:00:02.2]} 36... Rab8 {[%clk 0:00:09.6]} 37. Rd5 {[%clk 0:00:02.5]}
37... Rb1+ {[%clk 0:00:09.5]} 38. Kg2 {[%clk 0:00:02.8]} 38... h6 {[%clk
0:00:09.2]} 39. Rdxc5 {[%clk 0:00:03.7]} 39... Kh7 {[%clk 0:00:08.4]} 40. Rc7
{[%clk 0:00:03.6]} 40... Kg6 {[%clk 0:00:06.8]} 41. a5 {[%clk 0:00:03.9]} 41...
Ra1 {[%clk 0:00:06.4]} 42. R4c6+ {[%clk 0:00:04]} 42... f6 {[%clk 0:00:06.1]}
43. a6 {[%clk 0:00:04.1]} 43... Rb8 {[%clk 0:00:06]} 44. a7 {[%clk 0:00:04.2]}
44... Rbb1 {[%clk 0:00:05.9]} 45. Rc8 {[%clk 0:00:02.8]} 45... Rg1+ {[%clk
0:00:04.2]} 46. Kf3 {[%clk 0:00:03.7]} 46... Ra5 {[%clk 0:00:03.3]} 47. R6c7
{[%clk 0:00:03.7]} 47... Rf5+ {[%clk 0:00:03.3]} 48. Ke2 {[%clk 0:00:03.8]}
48... Rb1 {[%clk 0:00:02.7]} 49. Rg8 {[%clk 0:00:03.5]} 49... Rb2+ {[%clk
0:00:03.6]} 50. Kf1 {[%clk 0:00:03.7]} 50... Rd5 {[%clk 0:00:03.6]} 51. Rgxg7+
{[%clk 0:00:03.7]} 51... Kf5 {[%clk 0:00:04.2]} 52. g4+ {[%clk 0:00:04.3]} 52...
Ke4 {[%clk 0:00:04.4]} 53. Kg2 {[%clk 0:00:04.8]} 53... Ra5 {[%clk 0:00:03.8]}
54. Rc8 {[%clk 0:00:04.3]} 54... Ra1 {[%clk 0:00:02.3]} 55. a8=Q+ {[%clk
0:00:03.1]} 55... Rxa8 {[%clk 0:00:01.9]} 56. Rxa8 {[%clk 0:00:04]} 56... h5
{[%clk 0:00:02.5]} 57. Ra5 {[%clk 0:00:03.8]} 57... hxg4 {[%clk 0:00:02.1]} 58.
Ra4+ {[%clk 0:00:04.3]} 58... Kd3 {[%clk 0:00:02.3]} 59. Raxg4 {[%clk
0:00:05.2]} 59... f5 {[%clk 0:00:02.3]} 60. Rd4+ {[%clk 0:00:05.3]} 60... Ke2
{[%clk 0:00:02.5]} 61. Re7 {[%clk 0:00:05]} 1-0

[Event "*** Titled Tuesday Blitz"]
[Site "Chess.com"]
[Date "2021.02.16"]
[Round "11"]
[White "Frolyanov_D"]
[Black "ViditYT"]
[Result "0-1"]
[WhiteElo "2685"]
[BlackElo "2991"]
[TimeControl "180+1"]
[EndTime "12:11:50 PST"]
[Termination "ViditYT won on time"]

1. d4 {[%clk 0:03:00.9]} 1... Nf6 {[%clk 0:02:31.7]} 2. c4 {[%clk 0:03:00]} 2...
e6 {[%clk 0:02:31.5]} 3. Nf3 {[%clk 0:02:59.7]} 3... d5 {[%clk 0:02:31.6]} 4.
Nc3 {[%clk 0:02:59.4]} 4... Bb4 {[%clk 0:02:31.9]} 5. e3 {[%clk 0:02:57.9]} 5...
O-O {[%clk 0:02:31.8]} 6. Bd2 {[%clk 0:02:57.3]} 6... b6 {[%clk 0:02:31.3]} 7.
cxd5 {[%clk 0:02:54.9]} 7... exd5 {[%clk 0:02:32]} 8. Bd3 {[%clk 0:02:54.8]}
8... Re8 {[%clk 0:02:30.8]} 9. O-O {[%clk 0:02:54.3]} 9... Bd6 {[%clk
0:02:31.1]} 10. Qc2 {[%clk 0:02:41.9]} 10... c5 {[%clk 0:02:27.3]} 11. Rad1
{[%clk 0:02:27.1]} 11... Nc6 {[%clk 0:02:23.3]} 12. a3 {[%clk 0:02:18.2]} 12...
Bg4 {[%clk 0:02:17.6]} 13. dxc5 {[%clk 0:02:00.4]} 13... bxc5 {[%clk 0:02:15.3]}
14. Be2 {[%clk 0:01:58.1]} 14... d4 {[%clk 0:01:58.3]} 15. Nb5 {[%clk
0:01:57.2]} 15... Bf8 {[%clk 0:01:55.2]} 16. Bc1 {[%clk 0:01:57]} 16... a6
{[%clk 0:01:51.4]} 17. Nbxd4 {[%clk 0:01:49.5]} 17... Nxd4 {[%clk 0:01:38.7]}
18. exd4 {[%clk 0:01:48.9]} 18... Qe7 {[%clk 0:01:34.3]} 19. Be3 {[%clk
0:01:38]} 19... cxd4 {[%clk 0:01:16.7]} 20. Nxd4 {[%clk 0:01:36]} 20... Rac8
{[%clk 0:01:14]} 21. Qa4 {[%clk 0:01:19.5]} 21... Qe5 {[%clk 0:01:10.1]} 22.
Bxg4 {[%clk 0:01:10.2]} 22... Nxg4 {[%clk 0:01:10]} 23. Nf3 {[%clk 0:01:10.6]}
23... Qh5 {[%clk 0:01:07.4]} 24. Bf4 {[%clk 0:01:10.2]} 24... Re6 {[%clk
0:01:03.1]} 25. h3 {[%clk 0:01:07.6]} 25... Nf6 {[%clk 0:01:02]} 26. Ng5 {[%clk
0:00:59.1]} 26... Rec6 {[%clk 0:01:00.3]} 27. Qb3 {[%clk 0:00:38.5]} 27... Rc4
{[%clk 0:00:39.9]} 28. Be3 {[%clk 0:00:38.3]} 28... h6 {[%clk 0:00:36.4]} 29.
Nf3 {[%clk 0:00:38.1]} 29... Nd5 {[%clk 0:00:34.9]} 30. Bc1 {[%clk 0:00:29.5]}
30... R4c5 {[%clk 0:00:26.4]} 31. Qb7 {[%clk 0:00:26.2]} 31... a5 {[%clk
0:00:19.7]} 32. Qd7 {[%clk 0:00:25.9]} 32... Nf6 {[%clk 0:00:18.6]} 33. Qd3
{[%clk 0:00:20.7]} 33... Rd5 {[%clk 0:00:16.6]} 34. Qe2 {[%clk 0:00:19.6]} 34...
Rb5 {[%clk 0:00:14.2]} 35. b4 {[%clk 0:00:17.7]} 35... axb4 {[%clk 0:00:13.8]}
36. axb4 {[%clk 0:00:18.6]} 36... Rxb4 {[%clk 0:00:13.4]} 37. Be3 {[%clk
0:00:18.2]} 37... Re4 {[%clk 0:00:13]} 38. Nd4 {[%clk 0:00:16.6]} 38... Qg6
{[%clk 0:00:12.6]} 39. Qf3 {[%clk 0:00:16]} 39... Rce8 {[%clk 0:00:12.6]} 40.
Nf5 {[%clk 0:00:15.9]} 40... R4e5 {[%clk 0:00:12.6]} 41. Ng3 {[%clk 0:00:15.9]}
41... h5 {[%clk 0:00:12.3]} 42. Bf4 {[%clk 0:00:15.4]} 42... R5e6 {[%clk
0:00:12]} 43. Qd3 {[%clk 0:00:15.1]} 43... h4 {[%clk 0:00:08.4]} 44. Nf5 {[%clk
0:00:14.3]} 44... Re4 {[%clk 0:00:06.4]} 45. Nxh4 {[%clk 0:00:13.3]} 45... Qh7
{[%clk 0:00:06.8]} 46. Bg3 {[%clk 0:00:12]} 46... Rxh4 {[%clk 0:00:06.7]} 47.
Bxh4 {[%clk 0:00:12.4]} 47... Qxh4 {[%clk 0:00:07.6]} 48. Rde1 {[%clk
0:00:11.8]} 48... Rc8 {[%clk 0:00:04.6]} 49. Qf3 {[%clk 0:00:10.8]} 49... Qg5
{[%clk 0:00:04.1]} 50. Qe3 {[%clk 0:00:10.2]} 50... Qf5 {[%clk 0:00:04.2]} 51.
Rd1 {[%clk 0:00:09.4]} 51... Bc5 {[%clk 0:00:04]} 52. Qd3 {[%clk 0:00:09.1]}
52... Ne4 {[%clk 0:00:04]} 53. Qf3 {[%clk 0:00:07.3]} 53... Qxf3 {[%clk
0:00:03.8]} 54. gxf3 {[%clk 0:00:08.1]} 54... Ng5 {[%clk 0:00:04.3]} 55. Kg2
{[%clk 0:00:08.2]} 55... Ne6 {[%clk 0:00:04.6]} 56. Kg3 {[%clk 0:00:07.6]} 56...
Rb8 {[%clk 0:00:04.6]} 57. Rd5 {[%clk 0:00:06.5]} 57... g6 {[%clk 0:00:04.2]}
58. Rc1 {[%clk 0:00:05.5]} 58... Bf8 {[%clk 0:00:03.8]} 59. Rd7 {[%clk
0:00:04.1]} 59... Bg7 {[%clk 0:00:03.2]} 60. Ra7 {[%clk 0:00:03.4]} 60... Be5+
{[%clk 0:00:03.4]} 61. Kg2 {[%clk 0:00:03.3]} 61... Rb3 {[%clk 0:00:03.5]} 62.
Rc8+ {[%clk 0:00:02.1]} 62... Kg7 {[%clk 0:00:03.9]} 63. Re8 {[%clk 0:00:02.4]}
63... Nf4+ {[%clk 0:00:04.3]} 64. Kh2 {[%clk 0:00:02.2]} 64... Nd3+ {[%clk
0:00:03.2]} 0-1